[Event "Sabato rapido!"]
[Site "Chess.com"]
[Date "2020.05.09"]
[Round "4"]
[White "fausto2p"]
[Black "Luca090267"]
[Result "0-1"]
[WhiteElo "1082"]
[BlackElo "1417"]
[TimeControl "720+3"]
[EndTime "7:52:04 PDT"]
[Termination "Luca090267 ha vinto per tempo"]

1. d4 {[%clk 0:12:02.9]} 1... Nf6 {[%clk 0:11:57.4]} 2. c4 {[%clk 0:12:03.5]}
2... g6 {[%clk 0:11:57.1]} 3. Nc3 {[%clk 0:12:05]} 3... Bg7 {[%clk 0:11:57.7]}
4. e4 {[%clk 0:12:06.3]} 4... d6 {[%clk 0:11:58.5]} 5. f3 {[%clk 0:12:07.2]}
5... O-O {[%clk 0:11:58.3]} 6. Be3 {[%clk 0:12:06.7]} 6... e5 {[%clk 0:11:48.3]}
7. d5 {[%clk 0:12:07.5]} 7... a5 {[%clk 0:11:40.5]} 8. a3 {[%clk 0:11:51.9]}
8... Nbd7 {[%clk 0:11:40.6]} 9. g4 {[%clk 0:11:43.1]} 9... Nc5 {[%clk
0:11:27.6]} 10. Nge2 {[%clk 0:10:57]} 10... b6 {[%clk 0:11:15]} 11. Ng3 {[%clk
0:10:48.4]} 11... Bb7 {[%clk 0:10:13]} 12. h4 {[%clk 0:10:40.3]} 12... Nfd7
{[%clk 0:10:05.1]} 13. Qd2 {[%clk 0:10:32.7]} 13... f6 {[%clk 0:10:01.8]} 14.
Qc2 {[%clk 0:09:09.3]} 14... Rf7 {[%clk 0:09:30.4]} 15. O-O-O {[%clk 0:08:54.1]}
15... Qe7 {[%clk 0:09:12.5]} 16. Nb5 {[%clk 0:08:42.9]} 16... Qd8 {[%clk
0:09:08.1]} 17. h5 {[%clk 0:08:29.2]} 17... g5 {[%clk 0:09:05.5]} 18. Nf5 {[%clk
0:08:30.6]} 18... h6 {[%clk 0:08:59.6]} 19. Nxg7 {[%clk 0:08:26.8]} 19... Kxg7
{[%clk 0:08:59.9]} 20. Be2 {[%clk 0:06:41.6]} 20... Qc8 {[%clk 0:08:05.9]} 21.
Bd2 {[%clk 0:05:59.1]} 21... Qd8 {[%clk 0:07:50.9]} 22. f4 {[%clk 0:04:28.9]}
22... exf4 {[%clk 0:07:43.4]} 23. e5 {[%clk 0:04:28.9]} 23... Nxe5 {[%clk
0:07:24.9]} 24. Bc3 {[%clk 0:04:26.6]} 24... Ncd7 {[%clk 0:07:04]} 25. Bd3
{[%clk 0:03:46.3]} 25... Kh8 {[%clk 0:06:11.4]} 26. Bg6 {[%clk 0:03:32.4]} 26...
Rg7 {[%clk 0:06:06.7]} 27. Bf5 {[%clk 0:03:24.5]} 27... Qb8 {[%clk 0:04:47.8]}
28. Nd4 {[%clk 0:03:03.4]} 28... Nxc4 {[%clk 0:04:02.5]} 29. Nc6 {[%clk
0:01:57.1]} 29... Qf8 {[%clk 0:03:31.9]} 30. Rde1 {[%clk 0:01:01.6]} 30... Ne3
{[%clk 0:03:22.9]} 31. Qd3 {[%clk 0:00:47.4]} 31... Nc5 {[%clk 0:03:11.3]} 32.
Qd4 {[%clk 0:00:37.7]} 32... Nb3+ {[%clk 0:02:42.9]} 0-1

[Event "Sabato rapido!"]
[Site "Chess.com"]
[Date "2020.05.09"]
[Round "5"]
[White "sergiodone"]
[Black "crippo"]
[Result "1-0"]
[WhiteElo "1493"]
[BlackElo "1490"]
[TimeControl "720+3"]
[EndTime "8:00:05 PDT"]
[Termination "sergiodone ha vinto per scaccomatto"]

1. e4 {[%clk 0:11:33.8]} 1... e5 {[%clk 0:11:59.1]} 2. d4 {[%clk 0:11:29.6]}
2... exd4 {[%clk 0:12:00.4]} 3. Qxd4 {[%clk 0:11:30.5]} 3... Nc6 {[%clk
0:12:01.3]} 4. Qe3 {[%clk 0:11:31.9]} 4... d6 {[%clk 0:12:02.8]} 5. Nc3 {[%clk
0:11:32.3]} 5... Be7 {[%clk 0:12:04.7]} 6. Bd2 {[%clk 0:11:30.3]} 6... Nf6
{[%clk 0:12:06.3]} 7. h3 {[%clk 0:11:27.7]} 7... O-O {[%clk 0:12:08]} 8. O-O-O
{[%clk 0:11:22.1]} 8... Be6 {[%clk 0:12:07.8]} 9. Kb1 {[%clk 0:11:22.4]} 9... a5
{[%clk 0:12:03.9]} 10. f4 {[%clk 0:11:21.5]} 10... b5 {[%clk 0:12:04.7]} 11.
Bxb5 {[%clk 0:11:15.1]} 11... Na7 {[%clk 0:12:05.3]} 12. Ba4 {[%clk 0:11:08.1]}
12... c5 {[%clk 0:12:06.1]} 13. Nd5 {[%clk 0:11:05.5]} 13... Bxd5 {[%clk
0:12:04.7]} 14. exd5 {[%clk 0:11:07.1]} 14... Nxd5 {[%clk 0:12:06.6]} 15. Qf3
{[%clk 0:11:01.9]} 15... Nb4 {[%clk 0:12:06.4]} 16. a3 {[%clk 0:10:53.3]} 16...
Na6 {[%clk 0:11:59.5]} 17. Ne2 {[%clk 0:10:53.3]} 17... Rb8 {[%clk 0:12:00.4]}
18. Ka2 {[%clk 0:10:46.8]} 18... Bf6 {[%clk 0:11:57.1]} 19. Bc3 {[%clk
0:10:45.5]} 19... Nb5 {[%clk 0:11:51.4]} 20. Bxb5 {[%clk 0:10:46]} 20... Rxb5
{[%clk 0:11:52.1]} 21. g4 {[%clk 0:10:47.1]} 21... Qe7 {[%clk 0:11:30.9]} 22. g5
{[%clk 0:10:44.8]} 22... Bxc3 {[%clk 0:11:31.2]} 23. Nxc3 {[%clk 0:10:46.3]}
23... Qe6+ {[%clk 0:11:26.4]} 24. Qd5 {[%clk 0:10:38.3]} 24... Qg6 {[%clk
0:11:25.4]} 25. Nxb5 {[%clk 0:10:25]} 25... Qxc2 {[%clk 0:11:18.7]} 26. Qb3
{[%clk 0:10:25.2]} 26... Qe4 {[%clk 0:11:17.2]} 27. Qd3 {[%clk 0:10:03.6]} 27...
Qxf4 {[%clk 0:11:18.4]} 28. Qxd6 {[%clk 0:09:46.5]} 28... Qc4+ {[%clk
0:11:19.8]} 29. Ka1 {[%clk 0:09:28.9]} 29... Qxb5 {[%clk 0:11:20.5]} 30. h4
{[%clk 0:09:23.1]} 30... g6 {[%clk 0:11:13.7]} 31. h5 {[%clk 0:09:21.4]} 31...
c4 {[%clk 0:11:11.6]} 32. hxg6 {[%clk 0:09:15.2]} 32... hxg6 {[%clk 0:11:11.2]}
33. Qf6 {[%clk 0:09:06.4]} 33... Rb8 {[%clk 0:10:48.6]} 34. Rh8# {[%clk
0:09:06.2]} 1-0

[Event "Sabato rapido!"]
[Site "Chess.com"]
[Date "2020.05.09"]
[Round "5"]
[White "Luca090267"]
[Black "markk000"]
[Result "1-0"]
[WhiteElo "1445"]
[BlackElo "1508"]
[TimeControl "720+3"]
[EndTime "8:06:41 PDT"]
[Termination "Luca090267 ha vinto per abbandono"]

1. e4 {[%clk 0:12:02.9]} 1... c5 {[%clk 0:12:01.5]} 2. Nc3 {[%clk 0:12:03.4]}
2... Nc6 {[%clk 0:12:03.2]} 3. g3 {[%clk 0:12:03.6]} 3... g6 {[%clk 0:12:04.1]}
4. Bg2 {[%clk 0:12:05]} 4... Bg7 {[%clk 0:12:05.8]} 5. d3 {[%clk 0:12:06.5]}
5... Nf6 {[%clk 0:12:07.7]} 6. f4 {[%clk 0:11:53.9]} 6... d6 {[%clk 0:12:02.7]}
7. Nf3 {[%clk 0:11:55.4]} 7... Qb6 {[%clk 0:12:01.6]} 8. O-O {[%clk 0:11:38.1]}
8... c4+ {[%clk 0:12:02.3]} 9. Kh1 {[%clk 0:11:33.7]} 9... cxd3 {[%clk
0:12:03.8]} 10. cxd3 {[%clk 0:11:22.3]} 10... O-O {[%clk 0:12:03.8]} 11. d4
{[%clk 0:11:07.6]} 11... Bg4 {[%clk 0:12:03.4]} 12. e5 {[%clk 0:10:38.9]} 12...
Bxf3 {[%clk 0:11:52.5]} 13. Bxf3 {[%clk 0:10:33.5]} 13... Nd7 {[%clk 0:11:52.6]}
14. Nd5 {[%clk 0:09:21.4]} 14... Qxd4 {[%clk 0:11:03.7]} 15. Qxd4 {[%clk
0:08:44.4]} 15... Nxd4 {[%clk 0:11:05]} 16. Nxe7+ {[%clk 0:08:45.3]} 16... Kh8
{[%clk 0:11:02.7]} 17. exd6 {[%clk 0:08:41.8]} 17... Rfe8 {[%clk 0:10:19.9]} 18.
Rb1 {[%clk 0:08:05.4]} 18... Rab8 {[%clk 0:09:53.1]} 19. b3 {[%clk 0:08:00.6]}
19... Nxf3 {[%clk 0:09:49.4]} 20. Rxf3 {[%clk 0:08:00.2]} 20... Bf6 {[%clk
0:09:49]} 21. Nd5 {[%clk 0:07:09.8]} 21... Re1+ {[%clk 0:09:25.2]} 22. Kg2
{[%clk 0:07:07]} 22... Rc8 {[%clk 0:09:14.5]} 23. Rf1 {[%clk 0:06:41.4]} 23...
Re2+ {[%clk 0:08:59.8]} 24. Rf2 {[%clk 0:05:55.1]} 24... Rcc2 {[%clk 0:08:42.4]}
25. Rxe2 {[%clk 0:05:53]} 25... Rxe2+ {[%clk 0:08:45.3]} 26. Kh3 {[%clk
0:05:33.2]} 26... Rxa2 {[%clk 0:08:46.3]} 27. Nxf6 {[%clk 0:05:33.6]} 27... Nxf6
{[%clk 0:08:47.6]} 28. Bb2 {[%clk 0:05:09.1]} 28... Rxb2 {[%clk 0:08:35.2]} 29.
Rxb2 {[%clk 0:05:09.1]} 29... Kg8 {[%clk 0:08:35.9]} 30. Rc2 {[%clk 0:04:39.8]}
1-0

[Event "Sabato rapido!"]
[Site "Chess.com"]
[Date "2020.05.09"]
[Round "5"]
[White "OMatteoWuO"]
[Black "fausto2p"]
[Result "0-1"]
[WhiteElo "1165"]
[BlackElo "1106"]
[TimeControl "720+3"]
[EndTime "8:20:46 PDT"]
[Termination "fausto2p ha vinto per scaccomatto"]

1. d4 {[%clk 0:12:02.9]} 1... d5 {[%clk 0:12:00.4]} 2. c4 {[%clk 0:12:02.5]}
2... c6 {[%clk 0:12:01.8]} 3. Nc3 {[%clk 0:12:03.4]} 3... Nf6 {[%clk 0:12:02.8]}
4. Nf3 {[%clk 0:12:04.4]} 4... dxc4 {[%clk 0:11:57.3]} 5. e3 {[%clk 0:12:03.5]}
5... e6 {[%clk 0:11:45.8]} 6. Bxc4 {[%clk 0:12:04.6]} 6... b5 {[%clk 0:11:46.3]}
7. Be2 {[%clk 0:12:04.5]} 7... Bb4 {[%clk 0:11:41.8]} 8. Bd2 {[%clk 0:12:04.7]}
8... O-O {[%clk 0:11:31.1]} 9. a3 {[%clk 0:12:05.2]} 9... Be7 {[%clk 0:11:10]}
10. O-O {[%clk 0:12:00.7]} 10... Nbd7 {[%clk 0:10:55.3]} 11. Rc1 {[%clk
0:11:57.1]} 11... Nb6 {[%clk 0:10:48.3]} 12. b4 {[%clk 0:11:35.3]} 12... Bb7
{[%clk 0:10:13.3]} 13. Ne5 {[%clk 0:11:33.9]} 13... a5 {[%clk 0:09:55.4]} 14.
Bf3 {[%clk 0:10:47.3]} 14... axb4 {[%clk 0:09:42.4]} 15. axb4 {[%clk 0:10:42.7]}
15... Nfd5 {[%clk 0:09:05.5]} 16. Nxd5 {[%clk 0:10:34.1]} 16... cxd5 {[%clk
0:08:41.7]} 17. Qe2 {[%clk 0:09:45.9]} 17... Nc4 {[%clk 0:08:20.8]} 18. Nxc4
{[%clk 0:09:43.5]} 18... bxc4 {[%clk 0:08:21.8]} 19. h3 {[%clk 0:09:28.2]} 19...
Ra2 {[%clk 0:07:44.5]} 20. Ra1 {[%clk 0:09:12.3]} 20... Rxa1 {[%clk 0:07:18]}
21. Rxa1 {[%clk 0:09:11.9]} 21... Qb6 {[%clk 0:07:10.7]} 22. Rb1 {[%clk
0:09:05]} 22... Ra8 {[%clk 0:06:40.9]} 23. Bc3 {[%clk 0:08:55.1]} 23... Ra3
{[%clk 0:06:04.4]} 24. Qb2 {[%clk 0:08:51]} 24... Rb3 {[%clk 0:05:58.4]} 25. Qc2
{[%clk 0:08:32.4]} 25... Rxb1+ {[%clk 0:05:04]} 26. Qxb1 {[%clk 0:08:32.5]}
26... Bc6 {[%clk 0:04:56.5]} 27. Bd1 {[%clk 0:08:06.7]} 27... h6 {[%clk
0:04:51.9]} 28. Bc2 {[%clk 0:07:54.6]} 28... Bb5 {[%clk 0:04:48.1]} 29. Qa1
{[%clk 0:07:33.9]} 29... Qa6 {[%clk 0:04:27.5]} 30. Qa5 {[%clk 0:07:15.1]} 30...
Qxa5 {[%clk 0:03:36.9]} 31. bxa5 {[%clk 0:07:16.5]} 31... Ba6 {[%clk 0:03:27.1]}
32. f3 {[%clk 0:07:16]} 32... f6 {[%clk 0:03:21.4]} 33. e4 {[%clk 0:07:15.2]}
33... Kf7 {[%clk 0:03:17.3]} 34. Kf2 {[%clk 0:07:14.9]} 34... g6 {[%clk
0:03:08.1]} 35. Ke3 {[%clk 0:07:14]} 35... Ba3 {[%clk 0:03:01.6]} 36. Ba4 {[%clk
0:06:52.5]} 36... Bc1+ {[%clk 0:02:56.8]} 37. Ke2 {[%clk 0:06:52.9]} 37... f5
{[%clk 0:02:33.6]} 38. exd5 {[%clk 0:06:47]} 38... exd5 {[%clk 0:02:33.8]} 39.
Bc6 {[%clk 0:06:47.9]} 39... Ke6 {[%clk 0:02:33]} 40. Kd1 {[%clk 0:06:07.5]}
40... Bf4 {[%clk 0:02:31.1]} 41. Ke2 {[%clk 0:05:58.6]} 41... g5 {[%clk
0:02:12.9]} 42. g4 {[%clk 0:05:48.5]} 42... fxg4 {[%clk 0:02:00.3]} 43. hxg4
{[%clk 0:05:43.5]} 43... Kd6 {[%clk 0:01:54.2]} 44. Ba4 {[%clk 0:05:37.7]} 44...
Kc7 {[%clk 0:01:52]} 45. Bd2 {[%clk 0:05:09.6]} 45... Bd6 {[%clk 0:01:42.4]} 46.
Bc1 {[%clk 0:04:43.2]} 46... Kb7 {[%clk 0:01:34.6]} 47. Kf2 {[%clk 0:04:23.7]}
47... Bc7 {[%clk 0:01:28.8]} 48. Bd2 {[%clk 0:04:19.5]} 48... Bd6 {[%clk
0:01:16.9]} 49. Bc3 {[%clk 0:04:07.1]} 49... Kc7 {[%clk 0:01:14.5]} 50. Ke2
{[%clk 0:03:51]} 50... Bb7 {[%clk 0:01:14.9]} 51. Ke3 {[%clk 0:03:38.6]} 51...
Bf4+ {[%clk 0:01:14.8]} 52. Ke2 {[%clk 0:03:40]} 52... Kb8 {[%clk 0:01:11]} 53.
Bb4 {[%clk 0:03:29.9]} 53... Ka7 {[%clk 0:01:08.1]} 54. Bb5 {[%clk 0:03:27]}
54... Ba6 {[%clk 0:01:02.6]} 55. Bxa6 {[%clk 0:03:26]} 55... Kxa6 {[%clk
0:01:04.3]} 56. Bc3 {[%clk 0:03:22.6]} 56... Bc7 {[%clk 0:01:04.9]} 57. Ke3
{[%clk 0:03:16.7]} 57... Bxa5 {[%clk 0:01:01.8]} 58. Bxa5 {[%clk 0:03:18.2]}
58... Kxa5 {[%clk 0:01:03.3]} 59. Kd2 {[%clk 0:03:19.5]} 59... Kb4 {[%clk
0:01:04.4]} 60. Kc2 {[%clk 0:03:21.4]} 60... c3 {[%clk 0:00:58.7]} 61. Kc1
{[%clk 0:03:07.1]} 61... Kc4 {[%clk 0:00:59.7]} 62. Kc2 {[%clk 0:03:00.2]} 62...
Kxd4 {[%clk 0:01:01.3]} 63. Kd1 {[%clk 0:02:58.6]} 63... Kc4 {[%clk 0:01:01.5]}
64. Kc2 {[%clk 0:03:00.5]} 64... d4 {[%clk 0:01:03.1]} 65. f4 {[%clk 0:03:00.2]}
65... gxf4 {[%clk 0:01:03.8]} 66. g5 {[%clk 0:03:02.1]} 66... hxg5 {[%clk
0:01:04.7]} 67. Kc1 {[%clk 0:03:02.6]} 67... d3 {[%clk 0:01:05.6]} 68. Kb1
{[%clk 0:03:02.4]} 68... c2+ {[%clk 0:01:04.4]} 69. Kc1 {[%clk 0:03:01.5]} 69...
g4 {[%clk 0:01:00.7]} 70. Kd2 {[%clk 0:02:58.6]} 70... g3 {[%clk 0:01:02]} 71.
Kc1 {[%clk 0:02:59.8]} 71... g2 {[%clk 0:01:03.4]} 72. Kd2 {[%clk 0:02:58.9]}
72... f3 {[%clk 0:01:03.2]} 73. Kc1 {[%clk 0:02:54.3]} 73... g1=Q+ {[%clk
0:01:03.7]} 74. Kd2 {[%clk 0:02:56.3]} 74... Qd1+ {[%clk 0:01:04.1]} 75. Ke3
{[%clk 0:02:57.8]} 75... Qe2+ {[%clk 0:01:04.2]} 76. Kf4 {[%clk 0:02:59.6]}
76... f2 {[%clk 0:01:05]} 77. Kg5 {[%clk 0:02:55.1]} 77... f1=Q {[%clk
0:01:05.4]} 78. Kh4 {[%clk 0:02:55.6]} 78... Qeg2 {[%clk 0:01:05.7]} 79. Kh5
{[%clk 0:02:57.2]} 79... Qfh1# {[%clk 0:01:06.9]} 0-1